bitfinex-derivatives/quotes_BNBF0:USTF0_20251027
["timestamp","ask_amount","ask_price","bid_price","bid_amount"]
[1761561175503,2.29971205,1155.3,1152.7,1.015]
[1761561175704,2.29971205,1155.3,1152.8,0.57127535]
[1761561175902,2.29971205,1155.3,1152.7,1.015]
[1761561176101,0.15084525,1155.3,1152.8,0.57127535]
[1761561176303,0.15084525,1155.3,1152.7,1.015]
[1761561176503,0.15084525,1155.3,1152.8,0.57129898]
[1761561176705,0.15084525,1155.3,1152.7,1.015]
[1761561176906,0.15084525,1155.3,1152.8,0.57129898]
[1761561177106,0.15084525,1155.3,1152.7,1.015]
[1761561177303,0.15084525,1155.3,1152.8,0.57132384]
[1761561177508,0.15084525,1155.3,1152.7,1.015]
[1761561177706,0.15084525,1155.3,1152.8,0.57132384]
[1761561177904,0.15084525,1155.3,1152.7,1.015]
[1761561178103,0.15084525,1155.3,1152.8,0.57132372]
[1761561178307,0.15084525,1155.3,1152.9,0.57146536]
[1761561178506,0.15084525,1155.3,1152.7,1.015]
[1761561178706,0.15084525,1155.3,1152.8,0.571465]
[1761561178906,0.15084525,1155.3,1152.9,0.571465]
[1761561179106,0.15084525,1155.3,1152.7,1.015]
[1761561179306,0.15084525,1155.3,1152.8,0.5714842]
[1761561179606,0.15084525,1155.3,1152.9,0.5714842]
[1761561179806,0.15084525,1155.3,1152.7,1.015]
[1761561180007,0.15084525,1155.3,1152.8,0.57161625]
[1761561180206,0.15084525,1155.3,1152.9,0.57161625]
[1761561180406,0.15084525,1155.3,1152.7,1.015]
[1761561180610,0.15084525,1155.3,1152.8,0.5716165]
[1761561180809,0.15084525,1155.3,1152.9,0.5716165]
[1761561181006,0.15084525,1155.3,1152.7,1.015]
[1761561181206,0.15084525,1155.3,1152.8,0.57176583]
[1761561181507,0.15084525,1155.3,1152.9,0.57176583]
[1761561181711,0.15084525,1155.3,1152.7,1.015]
[1761561181908,0.15084525,1155.3,1152.8,0.57178612]
[1761561182210,0.15084525,1155.3,1152.9,0.57178612]
[1761561182511,0.15084525,1155.3,1152.7,1.015]
[1761561182711,0.15084525,1155.3,1152.8,0.57180573]
[1761561183011,0.15084525,1155.3,1152.9,0.57180573]
[1761561183212,0.15084525,1155.3,1152.7,1.015]
[1761561183415,0.15084525,1155.3,1152.8,0.57182199]
[1761561183613,0.15084525,1155.3,1152.9,0.57182199]
[1761561183814,0.15084525,1155.3,1153.0,0.57182199]
[1761561184113,0.15084525,1155.3,1152.7,1.015]
[1761561184310,0.15084525,1155.3,1152.8,0.57186959]
[1761561184513,0.15084525,1155.3,1152.9,0.57186959]
[1761561184710,0.15084525,1155.3,1153.0,0.57186959]
[1761561184916,0.15084525,1155.3,1152.7,1.015]
[1761561185112,0.15084525,1155.3,1152.8,0.57188708]
[1761561185317,0.15084525,1155.3,1152.7,1.015]
[1761561185516,0.15084525,1155.3,1152.8,0.57196952]
[1761561185717,0.15084525,1155.3,1152.2,0.64606973]
[1761561186017,0.15084525,1155.3,1152.3,1.21803597]
[1761561186217,0.15084525,1155.3,1152.4,0.57196624]
[1761561186518,0.15084525,1155.3,1152.5,0.57196624]
[1761561186813,0.15084525,1155.3,1152.6,0.57196624]
[1761561187114,0.15084525,1155.3,1152.7,0.57196624]
[1761561187318,0.15084525,1155.3,1152.8,0.57196624]
[1761561187516,0.15084525,1155.3,1152.9,0.57196624]
[1761561187718,0.15084525,1155.3,1152.4,0.64606973]
[1761561187719,2.1488668,1155.5,1152.6,0.64606973]
[1761561187918,2.1488668,1155.5,1152.7,0.57165004]
[1761561188121,2.1488668,1154.8,1152.8,0.57165004]
[1761561188420,2.1488668,1154.8,1152.9,0.57165004]
[1761561188621,2.1488668,1154.8,1152.6,0.64606973]
[1761561188920,2.1488668,1154.8,1152.7,2.11366552]
[1761561189220,2.1488668,1154.8,1152.8,0.57166552]
[1761561189415,2.1488668,1154.8,1152.9,0.57166552]
[1761561189620,2.1488668,1154.8,1153.0,0.57166552]
[1761561189920,2.1488668,1154.8,1152.7,2.18806973]
[1761561190116,2.1488668,1154.9,1152.8,0.57161403]
[1761561190314,2.1488668,1154.9,1152.9,0.57161403]
[1761561190519,5.1572804,1155.7,1153.0,0.57161403]
[1761561190719,3.0084136,1155.5,1153.1,0.57161403]
[1761561190919,3.0084136,1155.5,1153.2,0.57161403]
[1761561191117,2.1488668,1155.2,1153.3,0.57161403]
[1761561191416,2.1488668,1155.2,1153.0,0.64606973]
[1761561191620,2.1488668,1155.3,1153.1,0.57102518]
[1761561191817,2.1488668,1155.3,1153.2,0.57102518]
[1761561192022,2.1488668,1155.3,1153.3,0.57102518]
[1761561192217,2.1488668,1155.4,1153.4,0.57101062]
[1761561192422,2.1488668,1155.4,1152.9,0.64606973]
[1761561192721,3.0084136,1155.6,1153.0,0.5707161]
[1761561192921,2.29963657,1155.9,1153.1,0.5707161]
[1761561193121,0.15076977,1155.9,1153.2,0.5707161]
[1761561193418,0.15076977,1155.9,1153.3,0.5707161]
[1761561193616,0.15076977,1155.9,1153.4,0.5707161]
[1761561193820,0.15076977,1155.9,1152.9,0.64606973]
[1761561194019,0.15076977,1155.9,1153.0,0.5703777]
[1761561194218,0.15076977,1155.9,1153.1,0.5703777]
[1761561194422,0.15076977,1155.9,1153.2,0.5703777]
[1761561194718,0.15076977,1155.9,1153.3,0.5703777]
[1761561195019,0.15076977,1155.9,1153.4,0.5703777]
[1761561195227,0.15076977,1155.9,1152.9,0.64606973]
[1761561195426,0.15076977,1155.9,1153.0,0.5698411]
[1761561195625,0.15076977,1155.9,1153.1,0.5698411]
[1761561195827,2.1488668,1156.4,1153.2,0.5698411]
[1761561196030,0.15073451,1156.1,1153.3,0.5698411]
[1761561196226,0.15073451,1156.1,1152.7,1.542]
[1761561196227,0.15073451,1156.1,1153.4,0.5698411]
[1761561196427,0.15073451,1156.1,1153.5,0.56950268]
[1761561196627,0.15073451,1156.1,1153.6,0.56950268]
[1761561196828,2.1488668,1156.0,1152.9,0.64606973]
[1761561197023,2.1488668,1156.0,1153.0,0.56958181]
[1761561197227,2.1488668,1156.0,1153.1,0.56958181]
[1761561197425,2.1488668,1156.0,1153.2,0.56958181]
[1761561197626,2.1488668,1156.0,1153.3,0.56958181]
[1761561197825,2.1488668,1156.0,1152.9,0.64606973]
[1761561198025,2.1488668,1156.0,1153.0,0.56939466]
[1761561198228,2.1488668,1156.0,1153.1,0.56939466]
[1761561198424,2.1488668,1156.0,1153.2,0.56939466]
[1761561198629,2.1488668,1156.0,1153.3,0.56939466]
[1761561198925,2.1488668,1156.0,1152.8,0.64606973]
[1761561199127,2.1488668,1156.0,1152.9,0.5692213]
[1761561199430,2.29960131,1156.1,1153.0,0.5692213]
[1761561199626,2.29960131,1156.1,1153.1,0.5692213]
[1761561199824,2.29960131,1156.1,1153.2,0.5692213]
[1761561200026,2.1488668,1155.5,1152.8,0.64606973]
[1761561200227,2.1488668,1155.5,1152.9,0.56913642]
[1761561200430,2.1488668,1155.5,1153.0,0.56913642]
[1761561200630,2.1488668,1155.4,1153.1,0.56913642]
[1761561200828,2.1488668,1155.4,1152.7,2.18806973]
[1761561201030,2.1488668,1155.3,1152.8,0.56911254]
[1761561201331,2.1488668,1155.3,1152.9,0.56911254]
[1761561201533,2.1488668,1155.2,1152.7,1.542]
[1761561201734,2.1488668,1155.2,1152.8,0.56911757]
[1761561202031,2.1488668,1155.2,1152.9,0.56911757]
[1761561202234,2.1488668,1155.2,1152.7,1.542]
[1761561202435,2.1488668,1155.2,1152.8,0.56913328]
[1761561202735,2.1488668,1155.2,1152.7,1.542]
[1761561202736,2.1488668,1155.2,1152.9,0.56913328]
[1761561202936,2.1488668,1155.2,1152.7,1.542]
[1761561203137,3.0084136,1155.6,1152.8,0.56915942]
[1761561203337,2.1488668,1155.9,1152.9,0.56915942]
[1761561203637,2.1488668,1155.9,1152.7,1.542]
[1761561203838,2.1488668,1155.9,1152.8,0.56918052]
[1761561204136,2.1488668,1155.9,1152.9,0.56918052]
[1761561204335,2.1488668,1155.9,1152.7,1.542]
[1761561204539,2.1488668,1155.9,1152.8,0.56921166]
[1761561204737,2.1488668,1156.0,1152.9,0.56921166]
[1761561205035,2.1488668,1156.0,1152.7,1.542]
[1761561205238,2.1488668,1156.0,1152.8,0.56922787]
[1761561205433,2.1488668,1156.0,1152.9,0.56922787]
[1761561205631,2.1488668,1156.0,1152.7,1.542]
[1761561205837,2.1488668,1156.0,1152.8,0.56925778]
[1761561206137,2.29960131,1156.1,1152.9,0.56925778]
[1761561206337,2.29960131,1156.1,1152.7,1.542]
[1761561206539,2.29960131,1156.1,1152.8,0.56932461]
[1761561206739,2.29960131,1156.1,1152.9,0.56932461]
[1761561206937,2.29960131,1156.1,1152.7,1.542]
[1761561207141,2.29960131,1156.1,1152.8,0.56935374]
[1761561207338,2.29960131,1156.1,1152.9,0.56935374]
[1761561207541,2.29960131,1156.1,1152.7,1.542]
[1761561207839,2.1488668,1156.0,1152.8,0.56938634]
[1761561208138,2.1488668,1156.0,1152.9,0.56938634]
[1761561208343,2.1488668,1156.0,1152.7,1.542]
[1761561208640,2.1488668,1156.0,1152.8,0.56945194]
[1761561208841,2.1488668,1156.0,1152.9,0.56945194]
[1761561209042,2.1488668,1156.0,1152.7,1.542]
[1761561209239,2.1488668,1156.0,1152.8,0.5694905]
[1761561209442,2.1488668,1156.0,1152.9,0.5694905]
[1761561209643,2.1488668,1156.0,1152.7,1.542]
[1761561209842,2.1488668,1156.0,1152.8,0.56952317]
[1761561210039,2.1488668,1156.0,1152.9,0.56952317]
[1761561210243,2.1488668,1156.0,1152.7,1.542]
[1761561210441,2.1488668,1155.9,1152.8,0.56959874]
[1761561210642,2.1488668,1155.9,1152.9,0.56959874]
[1761561210842,2.1488668,1155.9,1152.7,1.542]
[1761561211040,2.1488668,1155.9,1152.8,0.56959874]
[1761561211243,2.1488668,1155.9,1152.9,0.56959874]
[1761561211442,2.1488668,1155.9,1153.0,0.56959874]
[1761561211641,2.1488668,1155.9,1152.7,1.542]
[1761561211941,2.1488668,1155.8,1152.8,0.56968004]
[1761561212142,2.1488668,1155.8,1152.9,0.56968004]
[1761561212346,2.1488668,1155.8,1153.0,0.56968004]
[1761561212549,2.1488668,1155.8,1152.7,1.542]
[1761561212846,2.1488668,1155.8,1152.8,0.56976303]
[1761561213049,2.1488668,1155.7,1152.9,0.56976303]
[1761561213342,2.1488668,1155.7,1153.0,0.56976303]
[1761561213546,2.1488668,1155.7,1152.7,1.542]
[1761561213742,2.1488668,1155.7,1152.8,0.5698519]
[1761561213947,2.1488668,1155.7,1152.9,0.5698519]
[1761561214145,2.1488668,1155.7,1153.0,0.5698519]
[1761561214345,2.1488668,1155.7,1152.7,1.542]
[1761561214548,2.1488668,1155.6,1152.8,0.56993723]
[1761561214844,2.1488668,1155.6,1152.9,0.56993723]
[1761561215044,2.1488668,1155.6,1153.0,0.56993723]
[1761561215244,2.1488668,1155.6,1152.7,1.542]
[1761561215449,2.1488668,1155.6,1152.8,0.56999129]
[1761561215750,2.1488668,1155.5,1152.9,0.56999129]
[1761561215944,2.1488668,1155.5,1152.7,1.542]
[1761561216246,2.1488668,1155.4,1152.8,0.56999129]
[1761561216448,2.1488668,1155.4,1152.9,0.56999129]
[1761561216646,2.1488668,1155.4,1152.7,1.542]
[1761561217144,2.1488668,1155.0,1152.7,1.542]
[1761561221748,2.1488668,1155.2,1152.7,1.542]
[1761561223850,2.1488668,1155.0,1152.7,1.542]
[1761561224451,2.1488668,1154.9,1152.7,1.542]
[1761561226453,2.1488668,1155.1,1152.7,1.542]
[1761561227456,2.1488668,1155.0,1152.7,1.542]
[1761561231159,2.1488668,1155.1,1152.7,1.542]
[1761561231752,2.1488668,1155.1,1152.2,0.64606973]
[1761561231958,2.1488668,1155.1,1152.3,0.56857931]
[1761561232255,2.1488668,1155.1,1152.4,0.56857931]
[1761561232452,2.1488668,1155.1,1152.5,0.56857931]
[1761561232657,2.1488668,1155.1,1152.6,0.56857931]
[1761561232854,2.1488668,1155.1,1152.2,0.64606973]
[1761561233153,2.1488668,1155.1,1152.3,0.56854896]
[1761561233358,2.1488668,1155.1,1152.4,0.56854896]
[1761561233557,2.1488668,1155.1,1152.5,0.56854896]
[1761561233758,2.1488668,1155.0,1152.6,0.56854896]
[1761561233959,2.1488668,1155.0,1152.2,0.64606973]
[1761561234157,2.1488668,1155.0,1152.3,0.56851947]
[1761561234460,2.1488668,1155.0,1152.4,0.56851947]
[1761561234661,2.1488668,1155.0,1152.5,0.56851947]
[1761561234860,2.1488668,1155.0,1152.6,0.56851947]
[1761561235061,2.1488668,1155.0,1152.7,0.56849172]
[1761561235261,2.1488668,1155.1,1152.8,2.22037967]
[1761561235461,2.1488668,1155.1,1152.8,1.652]
[1761561238466,2.1488668,1155.5,1152.8,1.652]
[1761561242164,2.1488668,1155.0,1152.8,1.652]
[1761561242668,2.1488668,1154.9,1152.8,1.652]
[1761561244665,2.1488668,1155.0,1152.8,1.652]
[1761561247770,2.1488668,1155.1,1152.8,1.652]
[1761561251873,2.1488668,1155.0,1152.8,1.652]
[1761561252469,2.1488668,1155.3,1152.8,1.652]
[1761561254275,2.1488668,1155.3,1152.9,0.56725376]
[1761561254575,2.1488668,1155.4,1152.8,1.652]
[1761561254875,2.1488668,1155.4,1152.9,0.56725376]
[1761561255175,2.1488668,1155.4,1152.8,1.652]
[1761561255373,2.1488668,1155.4,1152.9,0.56725376]
[1761561255669,2.1488668,1155.4,1152.8,1.652]
[1761561255875,2.1488668,1155.4,1152.9,0.5674519]
[1761561256174,2.1488668,1155.4,1152.8,1.652]
[1761561256376,2.1488668,1155.4,1152.9,0.56770705]
[1761561256570,2.1488668,1155.4,1152.8,1.652]
[1761561256571,2.1488668,1155.3,1152.8,1.652]
[1761561256769,2.1488668,1155.3,1152.9,0.56772975]
[1761561257071,2.1488668,1155.3,1152.8,1.652]
[1761561257274,2.1488668,1155.3,1152.9,0.56772975]
[1761561257478,2.1488668,1155.3,1152.8,1.652]
[1761561257680,2.1488668,1155.3,1152.9,0.56795122]
[1761561257974,2.1488668,1155.2,1152.8,1.652]
[1761561258277,2.1488668,1155.2,1152.9,0.56797356]
[1761561258477,2.1488668,1155.2,1152.8,1.652]
[1761561258775,2.1488668,1155.2,1152.9,0.56823119]
[1761561258974,2.1488668,1155.2,1152.8,1.652]
[1761561259173,2.1488668,1155.2,1152.9,0.56823119]
[1761561259373,2.1488668,1155.2,1152.8,1.652]
[1761561259574,2.1488668,1155.2,1152.9,0.56656255]
[1761561259878,2.1488668,1155.2,1152.8,1.652]
[1761561260079,2.1488668,1155.2,1152.9,0.56656219]
[1761561260275,2.1488668,1155.1,1152.8,1.652]
[1761561260476,2.1488668,1155.1,1152.9,0.56673013]
[1761561260676,2.1488668,1155.1,1152.8,1.652]
[1761561260875,2.1488668,1155.1,1152.9,0.56608382]
[1761561261078,2.1488668,1155.1,1152.8,1.652]
[1761561261280,2.1488668,1155.1,1152.9,0.56614792]
[1761561261481,2.1488668,1155.1,1152.8,1.652]
[1761561261879,2.1488668,1154.8,1152.8,1.652]
[1761561262284,2.1488668,1154.8,1152.5,0.64606973]
[1761561262480,2.1488668,1154.8,1152.6,0.56618723]
[1761561262685,2.1488668,1154.8,1152.7,0.56618723]
[1761561262881,2.1488668,1154.7,1152.8,0.56618723]
[1761561263086,2.1488668,1154.7,1152.5,0.64606973]
[1761561263283,2.1488668,1154.6,1152.6,0.56618723]
[1761561263487,2.1488668,1154.6,1152.7,0.56618723]
[1761561263683,2.1488668,1154.6,1152.8,0.56618723]
[1761561263987,2.1488668,1154.8,1152.5,0.64606973]
[1761561264184,2.1488668,1154.8,1152.6,0.56620098]
[1761561264383,2.1488668,1154.8,1152.7,0.56620098]
[1761561264585,2.1488668,1154.8,1152.8,0.56620098]
[1761561264784,2.1488668,1154.8,1152.5,0.64606973]
[1761561264988,2.1488668,1154.8,1152.6,0.56622009]
[1761561265188,2.1488668,1154.8,1152.7,2.08722009]
[1761561265488,2.1488668,1154.8,1152.8,0.56622009]
[1761561265788,2.1488668,1154.8,1152.7,1.521]
[1761561265987,2.1488668,1154.8,1152.8,0.56624857]
[1761561266185,2.1488668,1154.8,1152.7,1.521]
[1761561266386,2.1488668,1154.8,1152.8,0.56626555]
[1761561266587,2.1488668,1154.8,1152.7,1.521]
[1761561266786,2.1488668,1154.8,1152.8,0.56627192]
[1761561266997,2.1488668,1154.8,1152.7,1.521]
[1761561267190,2.1488668,1154.8,1152.8,0.56627192]
[1761561267387,2.1488668,1154.8,1152.7,1.521]
[1761561267591,2.1488668,1154.8,1152.8,0.56630187]
[1761561267789,2.1488668,1154.8,1152.7,1.521]
[1761561267988,2.1488668,1154.7,1152.8,0.56630175]
[1761561268192,2.1488668,1154.7,1152.7,1.521]
[1761561268389,2.1488668,1154.7,1152.8,0.56632817]
[1761561268592,2.1488668,1154.7,1152.7,1.521]
[1761561268792,2.1488668,1154.7,1152.8,0.56633549]
[1761561268994,2.1488668,1154.7,1152.7,1.521]
[1761561269193,2.1488668,1154.7,1152.8,0.56568927]
[1761561269393,2.1488668,1154.7,1152.7,1.521]
[1761561269394,2.1488668,1154.7,1152.9,0.56572652]
[1761561269594,2.1488668,1154.9,1152.7,1.521]
[1761561269795,2.1488668,1154.9,1152.8,0.5657264]
[1761561269990,2.1488668,1154.9,1152.9,0.5657264]
[1761561270190,1.2894052,1153.9,1152.7,1.521]
[1761561270390,1.2894052,1153.9,1152.8,0.55067917]
[1761561270595,1.2894052,1153.9,1152.7,1.521]
[1761561270795,1.2894052,1153.9,1152.8,0.55068678]
[1761561270993,1.2894052,1153.9,1152.7,1.521]
[1761561271395,1.2894052,1153.8,1152.7,1.521]
[1761561271592,1.2894052,1154.2,1152.7,1.521]
[1761561275103,1.2894052,1154.1,1152.7,1.521]
[1761561275299,1.2894052,1154.2,1152.7,1.521]
[1761561276503,1.2894052,1154.7,1152.7,1.521]
[1761561276702,1.2894052,1154.5,1152.7,1.521]
[1761561280404,1.2894052,1153.9,1152.7,1.521]
[1761561282600,1.2894052,1153.8,1152.7,1.521]
[1761561283305,1.2894052,1153.7,1152.7,1.521]
[1761561285706,1.2894052,1153.8,1152.7,1.521]
[1761561285909,1.2894052,1153.7,1152.7,1.521]
[1761561286310,1.2894052,1153.8,1152.7,1.521]
[1761561292613,1.2894052,1153.9,1152.7,1.521]
[1761561293215,1.2894052,1153.8,1152.7,1.521]
[1761561293415,1.2894052,1153.9,1152.7,1.521]
[1761561293816,1.2894052,1153.8,1152.7,1.521]
[1761561294315,1.2894052,1153.9,1152.7,1.521]
[1761561295717,1.2894052,1153.8,1152.7,1.521]
[1761561296717,1.2894052,1153.9,1152.7,1.521]
[1761561298723,1.2894052,1153.8,1152.7,1.521]
[1761561299419,1.2894052,1154.0,1152.7,1.521]
[1761561301523,1.2894052,1153.9,1152.7,1.521]
[1761561305228,1.2894052,1154.4,1152.7,1.521]
[1761561305429,1.2894052,1154.7,1152.7,1.521]
[1761561306229,0.15073451,1156.1,1152.7,1.521]
[1761561306230,1.2894052,1154.6,1152.7,1.521]
[1761561307130,1.2894052,1154.5,1152.7,1.521]
[1761561307932,1.2894052,1154.6,1152.7,1.521]
[1761561308331,1.2894052,1154.5,1152.7,1.521]
[1761561308525,1.2894052,1154.3,1152.7,1.521]
[1761561309229,1.2894052,1154.4,1152.7,1.521]
[1761561309427,1.2894052,1154.5,1152.8,0.54561312]
[1761561309626,1.2894052,1154.5,1152.7,1.521]
[1761561309831,1.2894052,1154.5,1152.8,0.54559402]
[1761561310033,1.2894052,1154.6,1152.9,0.54559402]
[1761561310232,1.2894052,1154.7,1152.7,1.521]
[1761561310432,1.2894052,1154.7,1152.8,0.54541406]
[1761561310631,1.2894052,1154.7,1152.9,0.54541406]
[1761561310834,1.2894052,1154.7,1152.7,1.521]
[1761561311031,1.2894052,1154.7,1152.8,0.545412]
[1761561311234,1.2894052,1154.7,1152.9,0.545412]
[1761561311531,1.2894052,1154.7,1152.7,1.521]
[1761561311734,1.2894052,1154.7,1152.8,0.54529074]
[1761561311932,1.2894052,1154.7,1152.9,0.54529074]
[1761561312134,1.2894052,1154.7,1152.7,1.521]
[1761561312135,1.2894052,1154.7,1153.0,0.54516237]
[1761561312333,1.2894052,1154.7,1152.7,1.521]
[1761561312532,1.2894052,1154.7,1152.8,0.54522385]
[1761561312730,1.2894052,1154.7,1152.7,1.521]
[1761561312934,1.2894052,1154.7,1152.8,0.54522385]
[1761561313136,1.2894052,1154.8,1152.3,0.64606973]
[1761561313335,1.2894052,1154.8,1152.4,0.54515428]
[1761561313636,1.2894052,1154.8,1152.5,0.54515428]
[1761561313835,1.2894052,1154.8,1152.6,0.54515428]
[1761561314032,1.2894052,1154.8,1152.7,0.54515428]
[1761561314237,1.2894052,1154.8,1152.8,0.54515428]
[1761561314538,1.2894052,1154.8,1152.3,0.64606973]
[1761561314733,1.2894052,1154.8,1152.4,0.54511362]
[1761561314937,1.2894052,1154.8,1152.5,0.54511362]
[1761561315137,1.2894052,1154.8,1152.6,0.54511362]
[1761561315338,1.2894052,1154.8,1152.3,0.64606973]
[1761561315339,1.2894052,1154.8,1152.7,0.54511362]
[1761561315539,1.2894052,1154.7,1152.8,0.54511362]
[1761561315836,1.2894052,1154.7,1152.3,0.64606973]
[1761561316039,1.2894052,1154.7,1152.4,0.54506085]
[1761561316237,1.2894052,1154.8,1152.5,0.54506085]
[1761561316446,1.2894052,1154.7,1152.6,0.54506085]
[1761561316646,1.2894052,1154.7,1152.7,1.62906085]
[1761561316845,1.2894052,1154.7,1152.8,0.54506085]
[1761561317150,1.2894052,1154.8,1152.7,1.084]
[1761561317349,1.2894052,1154.7,1152.8,0.54495841]
[1761561317646,1.2894052,1154.7,1152.7,1.084]
[1761561317850,1.2894052,1154.7,1152.8,0.54496431]
[1761561318050,1.2894052,1154.7,1152.7,1.084]
[1761561318245,1.2894052,1154.8,1152.8,0.54491364]
[1761561318546,1.2894052,1154.7,1152.7,1.084]
[1761561318757,1.2894052,1154.7,1152.8,0.54490025]
[1761561318949,1.2894052,1154.7,1152.7,1.084]
[1761561319146,1.2894052,1154.7,1152.8,0.54490025]
[1761561319345,1.2894052,1154.7,1152.7,1.084]
[1761561319645,1.2894052,1154.7,1152.8,0.54483772]
[1761561319845,1.2894052,1154.7,1152.7,1.084]
[1761561320046,1.2894052,1154.7,1152.8,0.54483772]
[1761561320245,1.2894052,1154.7,1152.7,1.084]
[1761561320445,1.2894052,1154.7,1152.8,0.54477356]
[1761561320647,1.2894052,1154.7,1152.7,1.084]
[1761561320851,1.2894052,1154.7,1152.8,0.54477356]
[1761561321050,1.2894052,1154.7,1152.7,1.084]
[1761561321355,1.2894052,1154.7,1152.8,0.54473176]
[1761561321547,1.2894052,1154.7,1152.7,1.084]
[1761561321851,1.2894052,1154.7,1152.8,0.54470338]
[1761561322148,2.1488668,1155.7,1152.7,1.084]
[1761561322149,1.2894052,1154.6,1152.7,1.084]
[1761561322848,1.2894052,1154.7,1152.7,1.084]
[1761561323052,1.2894052,1154.5,1152.7,1.084]
[1761561323359,1.2894052,1154.2,1152.7,1.084]
[1761561323548,1.2894052,1154.1,1152.7,1.084]
[1761561324260,1.2894052,1154.2,1152.7,1.084]
[1761561324851,1.2894052,1154.5,1152.7,1.084]
[1761561325051,1.2894052,1154.6,1152.7,1.084]
[1761561325252,6.4466005,1155.8,1152.7,1.084]
[1761561325253,1.2894052,1154.5,1152.7,1.084]
[1761561325452,1.2894052,1154.6,1152.7,1.084]
[1761561329558,1.2894052,1154.5,1152.7,1.084]
[1761561331056,1.2894052,1154.4,1152.7,1.084]
[1761561332553,1.2894052,1154.5,1152.7,1.084]
[1761561332753,1.2894052,1154.6,1152.8,0.54448097]
[1761561332958,1.2894052,1154.6,1152.7,1.084]
[1761561333157,1.2894052,1154.6,1152.8,0.54447807]
[1761561333359,1.2894052,1154.6,1152.7,1.084]
[1761561333657,1.2894052,1154.6,1152.8,0.54440015]
[1761561333855,1.2894052,1154.6,1152.7,1.084]
[1761561334157,1.2894052,1154.6,1152.8,0.54439436]
[1761561334354,1.2894052,1154.6,1152.7,1.084]
[1761561334554,1.2894052,1154.6,1152.8,0.54431478]
[1761561334853,1.2894052,1154.6,1152.7,1.084]
[1761561335052,1.2894052,1154.6,1152.8,0.54431188]
[1761561335354,1.2894052,1154.7,1152.9,0.54427583]
[1761561335559,1.2894052,1154.7,1152.7,1.084]
[1761561335756,1.2894052,1154.7,1152.8,0.54423434]
[1761561335955,1.2894052,1154.7,1152.9,0.54423434]
[1761561336158,1.2894052,1154.7,1152.7,1.084]
[1761561336359,1.2894052,1154.7,1152.8,0.54420378]
[1761561336653,1.2894052,1154.7,1152.9,0.54420378]
[1761561336854,1.2894052,1154.7,1152.7,1.084]
[1761561337054,1.2894052,1154.7,1152.8,0.54424778]
[1761561337254,1.2894052,1154.7,1152.9,0.54424778]
[1761561337455,1.2894052,1154.7,1152.7,1.084]
[1761561337656,1.2894052,1154.7,1152.8,0.54422247]
[1761561337854,1.2894052,1154.7,1152.9,0.54422247]
[1761561338053,1.2894052,1154.7,1152.7,1.084]
[1761561338260,1.2894052,1155.2,1152.8,0.54418098]
[1761561338456,1.2894052,1155.2,1152.9,0.54418098]
[1761561338758,1.2894052,1155.1,1152.7,1.084]
[1761561338954,1.2894052,1155.1,1152.8,0.54426722]
[1761561339156,1.2894052,1155.1,1152.7,1.084]
[1761561339357,0.15073451,1156.1,1152.8,0.54427475]
[1761561339358,1.2894052,1155.0,1152.8,0.54427475]
[1761561339657,1.2894052,1155.0,1152.9,0.54427475]
[1761561339856,1.2894052,1155.0,1152.7,1.084]
[1761561340054,1.2894052,1155.0,1152.8,0.54429883]
[1761561340257,1.2894052,1154.7,1152.9,0.54426469]
[1761561340454,1.2894052,1154.8,1152.7,1.084]
[1761561340659,1.2894052,1154.8,1152.8,0.54433875]
[1761561340856,1.2894052,1154.8,1152.7,1.084]
[1761561340857,1.2894052,1154.8,1152.9,0.54433875]
[1761561341059,1.2894052,1154.8,1152.7,1.084]
[1761561341262,1.2894052,1154.8,1152.8,0.54433851]
[1761561341560,1.2894052,1154.8,1152.9,0.54433851]
[1761561341862,1.2894052,1154.8,1152.7,1.084]
[1761561342065,1.2894052,1154.8,1152.8,0.54440288]
[1761561342264,1.2894052,1154.8,1152.9,0.54440288]
[1761561342462,1.2894052,1154.8,1152.7,1.084]
[1761561342665,1.2894052,1154.8,1152.8,0.54447152]
[1761561342965,1.2894052,1154.8,1152.9,0.54447152]
[1761561343167,1.2894052,1154.8,1152.7,1.084]
[1761561343466,1.2894052,1154.8,1152.8,0.54445645]
[1761561343766,1.2894052,1154.8,1152.9,0.54445645]
[1761561343962,1.2894052,1154.8,1152.7,1.084]
[1761561344165,1.2894052,1154.8,1152.8,0.54449227]
[1761561344461,1.2894052,1154.8,1152.9,0.54449227]
[1761561344665,1.2894052,1154.8,1152.7,1.084]
[1761561344862,1.2894052,1154.8,1152.8,0.54452325]
[1761561345065,1.2894052,1154.9,1152.9,0.54452325]
[1761561345362,1.2894052,1154.9,1153.0,0.54452325]
[1761561345565,1.2894052,1154.9,1152.7,1.084]
[1761561345766,1.2894052,1154.9,1152.8,0.54456304]
[1761561346061,1.2894052,1154.9,1152.9,0.54456304]
[1761561346262,1.2894052,1154.9,1153.0,0.54456304]
[1761561346566,1.2894052,1154.9,1152.7,1.084]
[1761561346766,1.2894052,1154.9,1152.8,0.54461864]
[1761561346967,1.2894052,1154.9,1152.9,0.54461864]
[1761561347262,1.2894052,1154.9,1153.0,0.54461864]
[1761561347563,1.2894052,1154.9,1152.7,1.084]
[1761561347766,1.2894052,1154.9,1152.8,0.54467943]
[1761561347962,1.2894052,1154.9,1152.9,0.54467943]
[1761561348266,1.2894052,1154.9,1153.0,0.54467943]
[1761561348467,1.2894052,1154.9,1152.7,1.084]
[1761561348662,1.2894052,1155.0,1152.8,0.54475137]
[1761561348866,1.2894052,1155.0,1152.9,0.54475137]
[1761561349062,1.2894052,1155.0,1153.0,0.54475137]
[1761561349266,1.2894052,1155.0,1152.7,1.084]
[1761561349465,1.2894052,1155.0,1152.8,0.54483465]
[1761561349664,1.2894052,1155.0,1152.9,0.54483465]
[1761561349963,1.2894052,1155.0,1153.0,0.54483465]
[1761561350168,1.2894052,1155.0,1152.7,1.084]
[1761561350169,1.2894052,1154.9,1152.7,1.084]
[1761561350369,1.2894052,1154.9,1152.8,0.54483983]
[1761561350669,1.2894052,1154.9,1152.9,0.54483983]
[1761561350864,1.2894052,1154.9,1153.0,0.54483983]
[1761561351069,1.2894052,1154.9,1152.7,1.084]
[1761561351268,1.2894052,1154.9,1152.8,0.54493684]
[1761561351470,1.2894052,1154.9,1152.9,0.54493684]
[1761561351765,1.2894052,1154.9,1153.0,0.54493684]
[1761561351967,1.2894052,1154.9,1152.7,1.084]
[1761561352168,1.2894052,1154.9,1152.8,0.54504359]
[1761561352467,1.2894052,1154.8,1152.9,0.54504359]
[1761561352665,1.2894052,1154.8,1153.0,0.54504359]
[1761561352870,1.2894052,1154.8,1152.7,1.084]